fUSD/lending_fUSD_20260107
["ID","MTS","AMOUNT","RATE_DAILY","PERIOD"]
[400739693,1767805840119,-1735.96841665,0.00015444,2]
[400739695,1767805840128,-1100.0,0.00015453,2]
[400739697,1767805840137,-22279.09260992,0.00015526,2]
[400739699,1767805840146,-200.0,0.00015533,2]
[400739701,1767805840156,-200.0,0.00015533,2]
[400739703,1767805840165,-500.0,0.00015546,2]
[400739705,1767805840175,-200.0,0.00015596,2]
[400739707,1767805840185,-1015.65451742,0.00015621,2]
[400739709,1767805840194,-1000.0,0.00015621,2]
[400739711,1767805840203,-1000.0,0.00015621,2]
[400739713,1767805840212,-1000.0,0.00015621,2]
[400739715,1767805840221,-911.91622264,0.00015621,2]
[400739717,1767805840230,-556.0741427,0.00015621,2]
[400739719,1767805840240,-1000.0,0.00015621,2]
[400739722,1767805840249,-1000.0,0.00015621,2]
[400739724,1767805840259,-1000.0,0.00015621,2]
[400739726,1767805840268,-1000.0,0.00015621,2]
[400739728,1767805840279,-1000.0,0.00015621,2]
[400739729,1767805840291,-1000.0,0.00015621,2]
[400739731,1767805840301,-1767.44,0.00015621,2]
[400739734,1767805840311,-500.0,0.0001567,2]
[400739736,1767805840320,-448.72451731,0.00015685,2]
[400739738,1767805840329,-322.6107,0.00015685,2]
[400739740,1767805840339,-500.0,0.00015685,2]
[400739741,1767805840348,-500.0,0.00015685,2]
[400739744,1767805840358,-151.55763012,0.00015685,2]
[400739745,1767805840367,-500.0,0.00015685,2]
[400739747,1767805840376,-500.0,0.00015685,2]
[400739749,1767805840385,-500.0,0.00015685,2]
[400739751,1767805840394,-500.0,0.00015685,2]
[400739753,1767805840403,-500.0,0.00015685,2]
[400739756,1767805840413,-500.0,0.00015685,2]
[400739757,1767805840422,-500.0,0.00015685,2]
[400739760,1767805840431,-500.0,0.00015685,2]
[400739761,1767805840441,-578.20924308,0.00015685,2]
[400739763,1767805840452,-500.0,0.00015685,2]
[400739766,1767805840463,-500.0,0.00015685,2]
[400739768,1767805840472,-574.12855637,0.00015685,2]
[400739769,1767805840481,-500.0,0.00015685,2]
[400739771,1767805840490,-500.0,0.00015685,2]
[400739773,1767805840501,-500.0,0.00015685,2]
[400739775,1767805840510,-500.0,0.00015685,2]
[400739777,1767805840519,-500.0,0.00015685,2]
[400739780,1767805840531,-500.0,0.00015685,2]
[400739782,1767805840540,-500.0,0.00015685,2]
[400739784,1767805840550,-500.0,0.00015685,2]
[400739786,1767805840559,-500.0,0.00015685,2]
[400739788,1767805840568,-1500.0,0.00015685,2]
[400739790,1767805840577,-500.0,0.00015685,2]
[400739792,1767805840586,-1500.0,0.00015685,2]
[400739794,1767805840595,-500.0,0.00015685,2]
[400739796,1767805840605,-1500.0,0.00015685,2]
[400739798,1767805840614,-500.0,0.00015685,2]
[400739800,1767805840622,-200.0,0.00015685,2]
[400739802,1767805840632,-1500.0,0.00015685,2]
[400739804,1767805840641,-500.0,0.00015685,2]
[400739806,1767805840650,-207.4,0.00015685,2]
[400739808,1767805840660,-1500.0,0.00015685,2]
[400739810,1767805840669,-500.0,0.00015685,2]
[400739811,1767805840678,-215.0738,0.00015685,2]
[400739814,1767805840688,-2000.0,0.00015685,2]
[400739816,1767805840697,-1500.0,0.00015685,2]
[400739818,1767805840706,-500.0,0.00015685,2]
[400739820,1767805840716,-223.0315306,0.00015685,2]
[400739822,1767805840726,-2000.0,0.00015685,2]
[400739824,1767805840735,-1500.0,0.00015685,2]
[400739826,1767805840745,-500.0,0.00015685,2]
[400739828,1767805840754,-231.28369723,0.00015685,2]
[400739830,1767805840763,-2000.0,0.00015685,2]
[400739832,1767805840775,-1500.0,0.00015685,2]
[400739834,1767805840784,-500.0,0.00015685,2]
[400739836,1767805840793,-239.84119403,0.00015685,2]
[400739838,1767805840804,-2000.0,0.00015685,2]
[400739840,1767805840813,-1500.0,0.00015685,2]
[400739841,1767805840822,-500.0,0.00015685,2]
[400739843,1767805840831,-248.71531821,0.00015685,2]
[400739845,1767805840841,-2000.0,0.00015685,2]
[400739848,1767805840850,-1500.0,0.00015685,2]
[400739849,1767805840859,-500.0,0.00015685,2]
[400739851,1767805840868,-257.91778498,0.00015685,2]
[400739852,1767805840877,-1500.0,0.00015685,2]
[400739853,1767805840886,-2000.0,0.00015685,2]
[400739854,1767805840895,-500.0,0.00015685,2]
[400739855,1767805840905,-267.46074303,0.00015685,2]
[400739856,1767805840914,-2000.0,0.00015685,2]
[400739857,1767805840923,-500.0,0.00015685,2]
[400739858,1767805840932,-277.35679052,0.00015685,2]
[400739859,1767805840941,-2000.0,0.00015685,2]
[400739860,1767805840951,-2000.0,0.00015685,2]
[400739861,1767805840960,-2000.0,0.00015685,2]
[400739862,1767805840969,-2000.0,0.00015685,2]
[400739863,1767805840979,-620.0,0.00015685,2]
[400739864,1767805840989,-250.0,0.00015685,2]
[400739865,1767805840998,-250.0,0.00015685,2]
[400739866,1767805841008,-200.0,0.00015688,2]
[400739867,1767805841017,-500.0,0.00015695,2]
[400739868,1767805841027,-151.0,0.0001571,2]
[400739869,1767805841036,-151.0,0.00015713,2]
[400739870,1767805841046,-151.0,0.00015713,2]
[400739871,1767805841056,-151.0,0.00015713,2]
[400739873,1767805841065,-151.0,0.00015713,2]
[400739875,1767805841075,-151.0,0.00015713,2]
[400739877,1767805841084,-151.0,0.00015725,2]
[400739879,1767805841093,-151.0,0.00015725,2]
[400739881,1767805841102,-22279.09260992,0.00015865,2]
[400739883,1767805841111,-1767.44,0.00015895,2]
[400739885,1767805841120,-1735.96841665,0.00015935,2]
[400739887,1767805841129,-255.0,0.00016017,2]
[400739889,1767805841139,-167.14,0.00016063,2]
[400739891,1767805841148,-150.0,0.00016114,2]
[400739893,1767805841158,-281.40504741,0.00016114,2]
[400739895,1767805841167,-174.06741652,0.00016114,2]
[400739897,1767805841177,-150.0,0.00016114,2]
[400739899,1767805841186,-1280.0,0.00016114,2]
[400739901,1767805841195,-500.0,0.00016114,2]
[400739903,1767805841204,-500.0,0.00016114,2]
[400739905,1767805841213,-150.0,0.00016114,2]
[400739907,1767805841222,-500.0,0.00016114,2]
[400739909,1767805841231,-150.0,0.00016114,2]
[400739911,1767805841240,-500.0,0.00016114,2]
[400739913,1767805841249,-500.0,0.00016114,2]
[400739915,1767805841259,-500.0,0.00016114,2]
[400739917,1767805841268,-817.0,0.00016114,2]
[400739919,1767805841278,-206.3800823,0.00016114,2]
[400739922,1767805841287,-500.0,0.00016114,2]
[400739924,1767805841297,-150.0,0.00016114,2]
[400739926,1767805841306,-500.0,0.00016114,2]
[400739928,1767805841316,-150.0,0.00016114,2]
[400739930,1767805841325,-150.0,0.00016114,2]
[400739932,1767805841334,-852.0,0.00016114,2]
[400739934,1767805841344,-9247.15,0.00016116,2]
[400739936,1767805841353,-1767.44,0.00016168,2]
[400739938,1767805841362,-1001.56852644,0.00016168,2]
[400739940,1767805841372,-1500.0,0.00016168,2]
[400739942,1767805841381,-1500.0,0.00016168,2]
[400739944,1767805841391,-1500.0,0.00016168,2]
[400739946,1767805841400,-176.00349903,0.00016168,2]
[400739948,1767805841410,-1500.0,0.00016168,2]
[400739950,1767805841420,-1500.0,0.00016168,2]
[400739952,1767805841429,-1500.0,0.00016168,2]
[400739954,1767805841439,-1500.0,0.00016168,2]
[400739956,1767805841450,-150.0,0.00016169,2]
[400739958,1767805841462,-199.62704522,0.00016169,2]
[400739960,1767805841471,-1280.0,0.00016169,2]
[400739962,1767805841481,-500.0,0.00016169,2]
[400739964,1767805841491,-500.0,0.00016169,2]
[400739966,1767805841500,-150.0,0.00016169,2]
[400739968,1767805841509,-500.0,0.00016169,2]
[400739970,1767805841519,-150.0,0.00016169,2]
[400739972,1767805841531,-500.0,0.00016169,2]
[400739974,1767805841540,-500.0,0.00016169,2]
[400739976,1767805841550,-500.0,0.00016169,2]
[400739978,1767805841559,-817.0,0.00016169,2]
[400739980,1767805841569,-500.0,0.00016169,2]
[400739982,1767805841579,-150.0,0.00016169,2]
[400739984,1767805841588,-500.0,0.00016169,2]
[400739986,1767805841598,-150.0,0.00016169,2]
[400739988,1767805841607,-852.0,0.00016169,2]
[400739990,1767805841616,-1455.64956121,0.00016194,2]
[400739992,1767805841626,-22279.09260992,0.00016204,2]
[400739994,1767805841636,-150.0,0.00016224,2]
[400739996,1767805841646,-1280.0,0.00016224,2]
[400739998,1767805841655,-500.0,0.00016224,2]
[400740000,1767805841664,-500.0,0.00016224,2]
[400740002,1767805841673,-150.0,0.00016224,2]
[400740004,1767805841682,-500.0,0.00016224,2]
[400740006,1767805841691,-150.0,0.00016224,2]
[400740008,1767805841701,-500.0,0.00016224,2]
[400740010,1767805841710,-500.0,0.00016224,2]
[400740013,1767805841724,-500.0,0.00016224,2]
[400740014,1767805841734,-817.0,0.00016224,2]
[400740017,1767805841744,-500.0,0.00016224,2]
[400740018,1767805841753,-150.0,0.00016224,2]
[400740020,1767805841763,-500.0,0.00016224,2]
[400740023,1767805841773,-219.25199485,0.00016224,2]
[400740024,1767805841782,-852.0,0.00016224,2]
[400740027,1767805841792,-321.46021109,0.00016225,5]
[400740029,1767805841803,-595.37131296,0.00016233,2]
[400740031,1767805841812,-1100.0,0.00016266,2]
[400740033,1767805841821,-281.23799714,0.00016278,2]
[400740035,1767805841831,-1280.0,0.00016278,2]
[400740037,1767805841840,-500.0,0.00016278,2]
[400740039,1767805841849,-500.0,0.00016278,2]
[400740041,1767805841858,-150.0,0.00016278,2]
[400740043,1767805841867,-500.0,0.00016278,2]
[400740045,1767805841876,-150.0,0.00016278,2]
[400740047,1767805841885,-500.0,0.00016278,2]
[400740049,1767805841894,-500.0,0.00016278,2]
[400740051,1767805841903,-500.0,0.00016278,2]
[400740053,1767805841912,-817.0,0.00016278,2]
[400740055,1767805841922,-500.0,0.00016278,2]
[400740056,1767805841930,-244.00411142,0.00016278,2]
[400740059,1767805841940,-500.0,0.00016278,2]
[400740061,1767805841949,-852.0,0.00016278,2]
[400740063,1767805841958,-420.0,0.00016294,2]
[400740065,1767805841967,-2131.89,0.00016296,2]
[400740067,1767805841977,-500.0,0.0001631,2]
[400740069,1767805841988,-1280.0,0.00016333,2]
[400740070,1767805841997,-500.0,0.00016333,2]
[400740072,1767805842006,-500.0,0.00016333,2]
[400740074,1767805842016,-179.16326783,0.00016333,2]
[400740077,1767805842025,-285.51728142,0.00016333,2]
[400740079,1767805842035,-500.0,0.00016333,2]
[400740081,1767805842044,-606.19487819,0.00016333,2]
[400740083,1767805842054,-272.01341084,0.00016333,2]
[400740085,1767805842064,-500.0,0.00016333,2]
[400740087,1767805842073,-817.0,0.00016333,2]
[400740089,1767805842083,-500.0,0.00016333,2]
[400740091,1767805842092,-500.0,0.00016333,2]
[400740093,1767805842101,-852.0,0.00016333,2]
[400740095,1767805842110,-1680.0,0.00016375,2]
[400740097,1767805842119,-195.0,0.00016376,2]
[400740099,1767805842128,-250.0,0.00016376,2]
[400740101,1767805842137,-5000.0,0.00016376,2]
[400740103,1767805842146,-195.0,0.00016376,2]
[400740105,1767805842155,-300.0,0.00016376,2]
[400740107,1767805842164,-300.0,0.00016376,2]
[400740109,1767805842175,-2500.0,0.00016376,2]
[400740111,1767805842184,-193.0,0.00016376,2]
[400740113,1767805842193,-300.0,0.00016376,2]
[400740115,1767805842202,-300.0,0.00016376,2]
[400740117,1767805842211,-1280.0,0.00016388,2]
[400740119,1767805842220,-521.47480439,0.00016388,2]
[400740121,1767805842229,-335.1109073,0.00016388,2]
[400740123,1767805842238,-500.0,0.00016388,2]
[400740125,1767805842247,-500.0,0.00016388,2]
[400740127,1767805842257,-500.0,0.00016388,2]
[400740128,1767805842266,-817.0,0.00016388,2]
[400740131,1767805842276,-500.0,0.00016388,2]
[400740133,1767805842285,-852.0,0.00016388,2]
[400740135,1767805842294,-1735.96841665,0.00016427,2]
[400740137,1767805842306,-646.90584134,0.00016437,2]
[400740139,1767805842315,-2209.08592586,0.00016438,2]
[400740141,1767805842324,-2209.08592586,0.00016438,2]
[400740143,1767805842333,-2209.08592586,0.00016438,2]
[400740145,1767805842342,-2209.08592586,0.00016438,2]
[400740147,1767805842352,-2209.08592586,0.00016438,2]
[400740148,1767805842361,-2209.08592586,0.00016438,2]
[400740150,1767805842371,-2209.08592586,0.00016438,2]
[400740153,1767805842381,-2209.08592586,0.00016438,2]
[400740155,1767805842390,-2209.08592586,0.00016438,2]
[400740157,1767805842399,-2209.08592586,0.00016438,2]
[400740159,1767805842409,-2209.08592586,0.00016438,2]
[400740161,1767805842419,-2209.08592586,0.00016438,2]
[400740163,1767805842428,-2209.08592586,0.00016438,2]
[400740165,1767805842437,-2209.08592586,0.00016438,2]
[400740167,1767805842447,-2209.08592586,0.00016438,2]
[400740169,1767805842460,-2209.08592586,0.00016438,2]
[400740171,1767805842469,-2209.08592586,0.00016438,2]
[400740173,1767805842479,-2209.08592586,0.00016438,2]
[400740175,1767805842489,-2209.08592586,0.00016438,2]
[400740177,1767805842499,-2209.08592586,0.00016438,2]
[400740179,1767805842509,-2209.08592586,0.00016438,2]
[400740181,1767805842517,-2209.08592586,0.00016438,2]
[400740183,1767805842527,-2209.08592586,0.00016438,2]
[400740185,1767805842536,-2209.08592586,0.00016438,2]
[400740186,1767805842545,-2209.08592586,0.00016438,2]
[400740188,1767805842555,-2209.08592586,0.00016438,2]
[400740192,1767805842565,-2209.08592586,0.00016438,2]
[400740195,1767805842575,-2209.08592586,0.00016438,2]
[400740198,1767805842584,-2209.08592586,0.00016438,2]
[400740201,1767805842593,-2209.08592586,0.00016438,2]
[400740203,1767805842602,-2209.08592586,0.00016438,2]
[400740206,1767805842611,-2209.08592586,0.00016438,2]
[400740208,1767805842620,-2209.08592586,0.00016438,2]
[400740209,1767805842629,-2209.08592586,0.00016438,2]
[400740211,1767805842639,-2209.08592586,0.00016438,2]
[400740214,1767805842648,-2209.08592586,0.00016438,2]
[400740217,1767805842658,-2209.08592586,0.00016438,2]
[400740219,1767805842668,-2209.08592586,0.00016438,2]
[400740222,1767805842678,-2209.08592586,0.00016438,2]
[400740225,1767805842688,-2209.08592586,0.00016438,2]
[400740229,1767805842697,-2209.08592586,0.00016438,2]
[400740231,1767805842706,-2209.08592586,0.00016438,2]
[400740233,1767805842715,-2209.08592586,0.00016438,2]
[400740235,1767805842724,-2209.08592586,0.00016438,2]
[400740237,1767805842734,-2209.08592586,0.00016438,2]
[400740239,1767805842744,-2209.08592586,0.00016438,2]
[400740241,1767805842753,-2209.08592586,0.00016438,2]
[400740243,1767805842762,-2209.08592586,0.00016438,2]
[400740245,1767805842772,-2209.08592586,0.00016438,2]
[400740247,1767805842781,-2209.08592586,0.00016438,2]
[400740249,1767805842790,-2209.08592586,0.00016438,2]
[400740251,1767805842799,-2209.08592586,0.00016438,2]
[400740253,1767805842809,-2209.08592586,0.00016438,2]
[400740255,1767805842822,-2209.08592586,0.00016438,2]
[400740257,1767805842831,-2209.08592586,0.00016438,2]
[400740259,1767805842840,-2209.08592586,0.00016438,2]
[400740261,1767805842849,-2209.08592586,0.00016438,2]
[400740263,1767805842859,-2209.08592586,0.00016438,2]
[400740265,1767805842869,-2209.08592586,0.00016438,2]
[400740267,1767805842879,-2209.08592586,0.00016438,2]
[400740269,1767805842889,-2209.08592586,0.00016438,2]
[400740271,1767805842899,-2209.08592586,0.00016438,2]
[400740273,1767805842908,-2209.08592586,0.00016438,2]
[400740275,1767805842917,-2209.08592586,0.00016438,2]
[400740277,1767805842927,-2209.08592586,0.00016438,2]
[400740279,1767805842936,-2209.08592586,0.00016438,2]
[400740281,1767805842945,-2209.08592586,0.00016438,2]
[400740283,1767805842955,-2209.08592586,0.00016438,2]
[400740286,1767805842965,-2209.08592586,0.00016438,2]
[400740288,1767805842975,-2209.08592586,0.00016438,2]
[400740290,1767805842985,-2186.99506658,0.00016438,2]
[400740292,1767805842994,-2186.99506658,0.00016438,2]
[400740294,1767805843003,-2186.99506658,0.00016438,2]
[400740295,1767805843013,-2186.99506658,0.00016438,2]
[400740297,1767805843023,-2186.99506658,0.00016438,2]
[400740299,1767805843033,-2186.99506658,0.00016438,2]
[400740302,1767805843043,-2186.99506658,0.00016438,2]
[400740304,1767805843052,-2186.99506658,0.00016438,2]
[400740306,1767805843062,-2186.99506658,0.00016438,2]
[400740307,1767805843071,-2186.99506658,0.00016438,2]
[400740310,1767805843081,-2186.99506658,0.00016438,2]
[400740311,1767805843091,-2186.99506658,0.00016438,2]
[400740313,1767805843100,-2186.99506658,0.00016438,2]
[400740315,1767805843109,-2186.99506658,0.00016438,2]
[400740318,1767805843118,-2186.99506658,0.00016438,2]
[400740319,1767805843127,-2186.99506658,0.00016438,2]
[400740321,1767805843137,-2186.99506658,0.00016438,2]
[400740323,1767805843146,-2186.99506658,0.00016438,2]
[400740326,1767805843161,-2186.99506658,0.00016438,2]
[400740327,1767805843171,-2186.99506658,0.00016438,2]
[400740329,1767805843181,-500.0,0.00016438,2]
[400740332,1767805843192,-17702.97,0.00016438,2]
[400740334,1767805843201,-800.0,0.00016438,2]
[400740336,1767805843214,-1767.44,0.00016442,2]
[400740338,1767805843224,-1280.0,0.00016443,2]
[400740340,1767805843234,-500.0,0.00016443,2]
[400740342,1767805843244,-500.0,0.00016443,2]
[400740344,1767805843253,-491.58151617,0.00016443,2]
[400740346,1767805843263,-817.0,0.00016443,2]
[400740349,1767805843272,-500.0,0.00016443,2]
[400740351,1767805843282,-852.0,0.00016443,2]
[400740353,1767805843292,-500.0,0.00016493,2]
[400740355,1767805843303,-1280.0,0.00016498,2]
[400740357,1767805843314,-500.0,0.00016498,2]
[400740359,1767805843324,-500.0,0.00016498,2]
[400740361,1767805843333,-817.0,0.00016498,2]
[400740363,1767805843342,-500.0,0.00016498,2]
[400740365,1767805843352,-852.0,0.00016498,2]
[400740367,1767805843362,-500.0,0.00016521,2]
[400740369,1767805843371,-500.0,0.00016526,2]
[400740371,1767805843381,-22279.09260992,0.00016544,2]
[400740373,1767805843391,-500.0,0.00016548,2]
[400740375,1767805843401,-1280.0,0.00016552,2]
[400740377,1767805843411,-500.0,0.00016552,2]
[400740379,1767805843421,-517.05568559,0.00016552,2]
[400740412,1767805843721,-817.0,0.00016552,2]
[400740415,1767805843732,-500.0,0.00016552,2]
[400740417,1767805843741,-852.0,0.00016552,2]
[400740419,1767805843751,-300.0,0.00016591,2]
[400740421,1767805843760,-188.33554362,0.00016602,2]
[400740423,1767805843769,-1280.0,0.00016607,2]
[400740425,1767805843779,-500.0,0.00016607,2]
[400740427,1767805843788,-817.0,0.00016607,2]
[400740429,1767805843799,-500.0,0.00016607,2]
[400740431,1767805843808,-852.0,0.00016607,2]
[400740433,1767805843817,-500.0,0.00016643,2]
[400740435,1767805843826,-322.49416926,0.00016643,2]
[400740437,1767805843836,-507.8387061,0.00016643,2]
[400740439,1767805843846,-182.6941269,0.00016643,2]
[400740441,1767805843856,-500.0,0.00016643,2]
[400740443,1767805843865,-360.78764565,0.00016643,2]
[400740445,1767805843875,-500.0,0.00016643,2]
[400740447,1767805843888,-500.0,0.00016643,2]
[400740449,1767805843898,-500.0,0.00016643,2]
[400740451,1767805843907,-628.50709886,0.00016643,2]
[400740453,1767805843917,-500.0,0.00016643,2]
[400740455,1767805843927,-378.44615396,0.00016643,2]
[400740457,1767805843937,-500.0,0.00016643,2]
[400740459,1767805843946,-500.0,0.00016643,2]
[400740461,1767805843956,-1280.0,0.00016662,2]
[400740463,1767805843965,-500.0,0.00016662,2]
[400740465,1767805843975,-817.0,0.00016662,2]
[400740467,1767805843985,-500.0,0.00016662,2]
[400740469,1767805843995,-852.0,0.00016662,2]
[400740471,1767805844006,-1767.44,0.00016716,2]
[400740473,1767805844015,-2000.0,0.00016716,2]
[400740476,1767805844025,-1408.10299042,0.00016716,2]
[400740478,1767805844035,-2000.0,0.00016716,2]
[400740480,1767805844044,-2000.0,0.00016716,2]
[400740482,1767805844054,-2000.0,0.00016716,2]
[400740484,1767805844064,-321.53609261,0.00016716,2]
[400740486,1767805844074,-2000.0,0.00016716,2]
[400740488,1767805844083,-1280.0,0.00016717,2]
[400740490,1767805844092,-500.0,0.00016717,2]
[400740492,1767805844102,-817.0,0.00016717,2]
[400740494,1767805844112,-500.0,0.00016717,2]
[400740497,1767805844122,-852.0,0.00016717,2]
[400740500,1767805844131,-1280.0,0.00016772,2]
[400740502,1767805844140,-500.0,0.00016772,2]
[400740504,1767805844150,-817.0,0.00016772,2]
[400740506,1767805844161,-500.0,0.00016772,2]
[400740508,1767805844172,-852.0,0.00016772,2]
[400740510,1767805844182,-617.40005154,0.00016781,2]
[400740512,1767805844191,-1280.0,0.00016826,2]
[400740514,1767805844201,-500.0,0.00016826,2]
[400740516,1767805844211,-817.0,0.00016826,2]
[400740518,1767805844221,-500.0,0.00016826,2]
[400740520,1767805844230,-852.0,0.00016826,2]
[400740522,1767805844239,-1000.0,0.00016857,2]
[400740524,1767805844248,-1280.0,0.00016881,2]
[400740526,1767805844258,-500.0,0.00016881,2]
[400740528,1767805844268,-817.0,0.00016881,2]
[400740530,1767805844279,-500.0,0.00016881,2]
[400740532,1767805844289,-852.0,0.00016881,2]
[400740534,1767805844298,-22279.09260992,0.00016883,2]
[400740537,1767805844309,-8634.0,0.00016903,2]
[400740538,1767805844318,-1735.96841665,0.00016918,2]
[400740541,1767805844328,-300.0,0.00016927,2]
[400740543,1767805844338,-1280.0,0.00016936,2]
[400740545,1767805844347,-406.89851448,0.00016936,2]
[400740547,1767805844356,-817.0,0.00016936,2]
[400740549,1767805844366,-645.0,0.00016936,2]
[400740551,1767805844376,-852.0,0.00016936,2]
[400740553,1767805844386,-53500.86,0.00016986,2]
[400740555,1767805844395,-2790.0,0.0001699,2]
[400740557,1767805844405,-1767.44,0.0001699,2]
[400740559,1767805844415,-1280.0,0.00016991,2]
[400740561,1767805844426,-817.0,0.00016991,2]
[400740563,1767805844436,-852.0,0.00016991,2]
[400740565,1767805844446,-250.0,0.00017,2]
[400740567,1767805844458,-179.52010608,0.00017,2]
[400740569,1767805844467,-1280.0,0.00017046,2]
[400740571,1767805844477,-817.0,0.00017046,2]
[400740573,1767805844486,-852.0,0.00017046,2]
[400740575,1767805844497,-334.5472959,0.00017054,2]
[400740577,1767805844507,-287.61899177,0.00017054,2]
[400740579,1767805844517,-642.94,0.00017054,2]
[400740581,1767805844527,-166.66,0.00017059,2]
[400740583,1767805844537,-1280.0,0.000171,2]
[400740585,1767805844547,-817.0,0.000171,2]
[400740587,1767805844562,-852.0,0.000171,2]
[400740590,1767805844573,-1100.0,0.00017122,2]
[400740592,1767805844583,-780.0,0.00017122,2]
[400740594,1767805844592,-1280.0,0.00017155,2]
[400740596,1767805844602,-817.0,0.00017155,2]
[400740598,1767805844611,-852.0,0.00017155,2]
[400740599,1767805844621,-780.0,0.00017179,2]
[400740601,1767805844631,-299.888,0.00017191,2]
[400740603,1767805844641,-500.0,0.00017191,2]
[400740606,1767805844651,-503.18143071,0.00017191,2]
[400740608,1767805844661,-1280.0,0.0001721,2]
[400740610,1767805844672,-817.0,0.0001721,2]
[400740612,1767805844682,-852.0,0.0001721,2]
[400740614,1767805844692,-22279.09260992,0.00017222,2]
[400740616,1767805844701,-2790.0,0.00017237,2]
[400740618,1767805844711,-433.0,0.00017238,2]
[400740620,1767805844721,-295.94492494,0.00017239,2]
[400740622,1767805844731,-1767.44,0.00017264,2]
[400740624,1767805844743,-2505.38555235,0.00017264,2]
[400740626,1767805844753,-537.00577444,0.00017264,2]
[400740628,1767805844762,-2500.0,0.00017264,2]
[400740630,1767805844772,-2500.0,0.00017264,2]
[400740632,1767805844781,-152.22115376,0.00017264,2]
[400740634,1767805844791,-1280.0,0.00017265,2]
[400740635,1767805844801,-817.0,0.00017265,2]
[400740636,1767805844810,-852.0,0.00017265,2]
[400740637,1767805844820,-780.0,0.00017267,2]
[400740638,1767805844829,-951.44310393,0.00017274,2]
[400740639,1767805844838,-300.0,0.00017317,2]
[400740640,1767805844849,-1280.0,0.00017319,2]
[400740641,1767805844858,-817.0,0.00017319,2]
[400740642,1767805844867,-852.0,0.00017319,2]
[400740643,1767805844876,-640.24385345,0.00017329,2]
[400740644,1767805844885,-300.0,0.00017358,2]
[400740645,1767805844894,-500.0,0.00017369,2]
[400740646,1767805844904,-1286.2212164,0.00017374,2]
[400740647,1767805844913,-830.13806168,0.00017374,2]
[400740648,1767805844922,-855.24922462,0.00017374,2]
[400740649,1767805844931,-300.0,0.00017392,2]
[400740650,1767805844941,-532.0,0.00017397,2]
[400740652,1767805844950,-1735.96841665,0.00017409,2]
[400740654,1767805844960,-1715.0,0.00017412,2]
[400740656,1767805844969,-2790.0,0.00017414,2]
[400740658,1767805844979,-300.0,0.00017439,2]
[400740660,1767805844988,-300.0,0.00017488,2]
[400740662,1767805844997,-1000.0,0.0001749,2]
[400740664,1767805845008,-2790.0,0.00017534,2]
[400740666,1767805845017,-1040.82358149,0.00017534,2]
[400740668,1767805845027,-1767.44,0.00017538,2]
[400740670,1767805845037,-2790.0,0.00017541,2]
[400740672,1767805845046,-1688.95959214,0.00017549,2]
[400740675,1767805845065,-22279.09260992,0.00017561,2]
[400740677,1767805845077,-300.0,0.0001757,2]
[400740679,1767805845087,-300.0,0.00017583,2]
[400740681,1767805845097,-951.44310391,0.00017587,2]
[400740684,1767805845107,-166.66,0.00017622,2]
[400740686,1767805845116,-300.0,0.00017631,2]
[400740688,1767805845126,-9228.55577035,0.0001764,2]
[400740690,1767805845136,-300.0,0.00017644,2]
[400740692,1767805845145,-827.5,0.00017651,2]
[400740694,1767805845155,-1715.0,0.00017671,2]
[400740696,1767805845166,-300.0,0.00017675,2]
[400740698,1767805845176,-3025.846,0.00017688,2]
[400740700,1767805845186,-212.515,0.00017688,2]
[400740702,1767805845195,-300.0,0.00017691,2]
[400740704,1767805845205,-619.404,0.00017699,2]
[400740706,1767805845215,-1405.0,0.00017699,2]
[400740709,1767805845226,-1330.0,0.00017699,2]